Cogmind - Beta 10.2 @@@ ROGUE MODE // 2021.12.13 @ 00:40:59 Player: Zyll Result: Destroyed by G-34 Mercenary with Small Laser Performance ------------- Evolutions (1) 500 Regions Visited (2) 400 Robots Destroyed (13) 65 Value Destroyed (525) 525 Prototype IDs (1) 20 Alien Tech Used (0) 0 Bonus (200) 200 TOTAL SCORE: 1710 Bonus ------- Pacifist 200 Cogmind --------- Core Integrity 0/400 Matter 300/300 Energy 100/100 System Corruption 5% Temperature Cool (6) Movement Core (200) Ox3 Location -9/Materials Parts ------- > --- POWER (1) -------- (None) > --- PROPULSION (3) --- (None) > --- UTILITY (3) ------ Medium Storage Unit Improved Terrain Scan Processor Core Shielding > --- WEAPON (2) ------- Backup Laser I > --- INVENTORY (8) ---- Reinforced Ion Engine Medium Matter Pod (87) Structural Scanner Improved Terrain Scanner Peak State ------------ > --- POWER ------------ Ion Engine > --- PROPULSION ------- Aluminum Leg Aluminum Leg Aluminum Leg > --- UTILITY ---------- Medium Storage Unit Improved Terrain Scanner Improved Terrain Scan Processor > --- WEAPON ----------- Heavy Particle Cannon Heavy Particle Cannon > --- INVENTORY -------- Improved Ion Engine Aluminum Leg Aluminum Leg Medium Matter Pod Structural Scanner Core Shielding Advanced Beam Cannon [Rating: 17] Favorites ----------- Power Ion Engine Engine Ion Engine Propulsion Aluminum Leg Leg Aluminum Leg Wheel Compact Wheel Utility Medium Storage Unit Device Improved Terrain Scanner Storage Medium Storage Unit Processor Improved Terrain Scan Processor Protection Core Shielding Weapon Heavy Particle Cannon Energy Gun Medium Laser Energy Cannon Heavy Particle Cannon Ballistic Gun Assault Rifle Launcher Grenade Launcher Build | -11 -10 -9 ------- Run | Scr Mat Mat Slots Evolved 2 | . . 2 Power . | . . . Propulsion 1 | . . 1 Utility 1 | . . 1 Weapon . | . . . Parts Attached 33 | 6 3 24 Power 4 | 1 . 3 Engine 4 | 1 . 3 Core . | . . . Reactor . | . . . Propulsion 9 | 2 . 7 Treads . | . . . Leg 7 | . . 7 Wheel 2 | 2 . . Hover . | . . . Flight . | . . . Utility 12 | 1 3 8 Device 3 | . . 3 Storage 4 | 1 2 1 Processor 1 | . . 1 Hackware . | . . . Protection 4 | . 1 3 Artifact . | . . . Weapon 8 | 2 . 6 Energy Gun 2 | 1 . 1 Energy Cannon 4 | . . 4 Ballistic Gun 1 | 1 . . Ballistic Cannon . | . . . Launcher 1 | . . 1 Special Weapon . | . . . Impact Weapon . | . . . Slashing Weapon . | . . . Piercing Weapon . | . . . Special Melee Weapon . | . . . Unidentified Prototypes 1 | . . 1 Parts Lost 16 | . . 16 Power 2 | . . 2 Propulsion 7 | . . 7 Utility . | . . . Weapon 7 | . . 7 Highest Loss Streak 6 | . . 6 Average Slot Usage (%) 96 | . 97 96 Engine 11 | . 14 10 Leg 25 | . . 29 Wheel 4 | . 28 1 Device 5 | . . 6 Storage 13 | . 21 12 Processor 5 | . . 6 Protection 6 | . 3 7 Energy Gun 4 | . 14 3 Energy Cannon 11 | . . 12 Ballistic Gun 4 | . 14 2 Launcher 1 | . . 1 Naked Turns . | . . . Heaviest Build 28 | 13 19 28 Greatest Support 30 | 26 26 30 Greatest Overweight (x) 6 | . . 6 Average Overweight (x) . | . . . Largest Inventory Capacity 8 | 6 8 8 Average Capacity 7 | 5 7 8 Most Carried 7 | 2 5 7 Average Carried 4 | 1 3 4 Final Capacity 8 | 6 8 8 Final Carried 5 | 2 5 4 Class Distribution -------------------- 79% | Mutant 20% | Scavenger-Mutant Dominant Class ---------------- Mutant | -10/Materials Mutant | -9/Materials Resources | -11 -10 -9 ----------- Run | Scr Mat Mat Matter Collected 624 | 215 . 409 Remotely . | . . . Salvage Created 462 | . . 462 Parts 33 | . . 33 Haulers Intercepted . | . . . Recyclers Shooed . | . . . Parts Field Recycled . | . . . Retrieved Matter . | . . . Parts Self-Destructed . | . . . Prevented . | . . . Kills | -11 -10 -9 ------- Run | Scr Mat Mat Combat Hostiles Destroyed 12 | . . 12 Guns 3 | . . 3 Cannons 5 | . . 5 AOE 4 | . . 4 Classes Destroyed 4 | . . 4 Builder 1 | . . 1 Grunt 8 | . . 8 Duelist 1 | . . 1 Sentry 3 | . . 3 Best Kill Streak 4 | . . 4 Combat Bots Only 3 | . . 3 Max Kills in Single Turn 2 | . . 2 Gunslinging . | . . . Exploded 2 | . . 2 Melee . | . . . Uniques/NPCs Destroyed . | . . . Combat | -11 -10 -9 -------- Run | Scr Mat Mat Damage Taken 1705 | . 33 1672 Core 415 | . 7 408 Absorbed by Shields . | . . . Core Remaining (%) 98 | 100 97 . Volleys Fired 44 | . . 44 Largest 2 | . . 2 Hottest 150 | . . 150 Shots Fired 76 | . . 76 Gun 47 | . . 47 Cannon 25 | . . 25 Launcher 4 | . . 4 Special . | . . . Kinetic 20 | . . 20 Thermal 36 | . . 36 Explosive 4 | . . 4 Electromagnetic 16 | . . 16 Robot Hit Streak 9 | . . 9 Robot Miss Streak 4 | . . 4 Penetration Max . | . . . Secondary Targets . | . . . Shots Hit Robots 51 | . . 51 Core Hits 25 | . . 25 Critical Hits 1 | . . 1 Critical Kills 1 | . . 1 Critical Parts Destroyed . | . . . Melee Attacks . | . . . Impact . | . . . Slashing . | . . . Piercing . | . . . Sneak Attacks . | . . . Combat Hostiles . | . . . Follow-up Attacks . | . . . Damage Inflicted 1346 | . . 1346 Guns 406 | . . 406 Cannons 250 | . . 250 Explosions 683 | . . 683 Melee . | . . . Ramming 7 | . . 7 Kinetic 170 | . . 170 Thermal 389 | . . 389 Explosive 629 | . . 629 Electromagnetic 151 | . . 151 Impact . | . . . Slashing . | . . . Piercing . | . . . Highest Corruption 5 | . . 5 Average Corruption 5 | . . 5 Corruption Purged . | . . . Effects 2 | . . 2 Message Errors 1 | . . 1 Matter Fused 1 | . . 1 Overload Shots . | . . . Overflow Damage 24 | . . 24 Projectiles . | . . . Explosions 24 | . . 24 Melee . | . . . Knockbacks . | . . . Impact . | . . . Kinetic . | . . . Secondary . | . . . Self-Inflicted Damage 295 | . . 295 Shots 7 | . . 7 Rammed 4 | . . 4 Targets Rammed 5 | . . 5 Kicked 1 | . . 1 Crushed . | . . . Highest Temperature 307 | . . 307 Average Temperature 84 | . . 84 Received Heat Transfer 600 | . . 600 Effects 3 | . . 3 Interference 3 | . . 3 Siege Activations . | . . . Robots Corrupted . | . . . Combat Hostiles . | . . . Parts Fried . | . . . Impact Corruptions . | . . . Robots Melted . | . . . Combat Hostiles . | . . . Parts Melted . | . . . Heat Transferred 766 | . . 766 Parts Sabotaged . | . . . Parts Stolen . | . . . Parts Stripped . | . . . Power Chain Reactions 1 | . . 1 Missiles Intercepted . | . . . Alert | -11 -10 -9 ------- Run | Scr Mat Mat Peak Influence 281 | . 19 281 Initial 7 | . . 7 Average 134 | . 10 159 Maximum Alert Level 1 | . . 1 Low Security (%) 59 | 100 100 51 Level 1 40 | . . 48 Level 2 . | . . . Level 3 . | . . . Level 4 . | . . . Level 5 . | . . . High Security . | . . . Max Security . | . . . Squads Dispatched 4 | . . 4 Investigation 3 | . . 3 Extermination . | . . . Reinforcement 1 | . . 1 Assault . | . . . Garrison . | . . . Intercept . | . . . Construction Impeded . | . . . Haulers Reinforced . | . . . Stealth | -11 -10 -9 --------- Run | Scr Mat Mat Distress Signals 2 | . . 2 Communications Jammed . | . . . Distress Signals . | . . . Times Spotted 34 | . 4 30 Peak Tracking Total 8 | . 5 8 Tactical Retreats 2 | . . 2 Traps | -11 -10 -9 ------- Run | Scr Mat Mat Traps Triggered 2 | . . 2 Indirectly . | . . . Trap Hack Attempts . | . . . Triggered . | . . . Disarmed . | . . . Reprogrammed . | . . . Reused . | . . . Traps Extracted . | . . . Installed . | . . . Triggered . | . . . Machines | -11 -10 -9 ---------- Run | Scr Mat Mat Machines Disabled 4 | . . 4 Max in Single Turn 2 | . . 2 Machines Sabotaged . | . . . Garrisons Compromised . | . . . Overloaded Fab Kills . | . . . Fab Network Shutdowns . | . . . Hacking | -11 -10 -9 --------- Run | Scr Mat Mat Machines Accessed 10 | . 3 7 Terminals 7 | . 3 4 Fabricators . | . . . Repair Stations 2 | . . 2 Recycling Units 1 | . . 1 Scanalyzers . | . . . Garrison Access . | . . . Total Hacks 25 | . 5 20 Successful 14 | . 3 11 Failed 11 | . 2 9 Catastrophic 1 | . 1 . Database Lockouts . | . . . Manual 16 | . 3 13 Terminals 19 | . 5 14 Fabricators . | . . . Repair Stations 3 | . . 3 Recycling Units 3 | . . 3 Scanalyzers . | . . . Garrison Access . | . . . Terminal Hacks 3 | . 2 1 Emergency Access Points 1 | . 1 . Dispatch Records 1 | . . 1 Hauler Manifests 1 | . 1 . Fabricator Hacks . | . . . Repair Station Hacks 3 | . . 3 Scan Component 1 | . . 1 Repair 1 | . . 1 Refit 1 | . . 1 Recycling Unit Hacks 1 | . . 1 Report Inventory 1 | . . 1 Scanalyzer . | . . . Garrison Access Hacks . | . . . Unauthorized Hacks 7 | . 1 6 Terminals 5 | . 1 4 Botnet 3 | . 1 2 Detonate 2 | . . 2 Fabricators . | . . . Repair Stations . | . . . Recycling Units 2 | . . 2 Reject 1 | . . 1 Mask 1 | . . 1 Scanalyzers . | . . . Garrison Access . | . . . Data Cores Recovered . | . . . Used . | . . . Hacking Detections 6 | . 1 5 Full Trace Events 4 | . 1 3 Feedback Events . | . . . Feedback Blocked . | . . . Robot Schematics Acquired . | . . . Robots Built . | . . . Matter . | . . . Time . | . . . Total Robot Build Rating . | . . . Part Schematics Acquired . | . . . Parts Built . | . . . Matter . | . . . Time . | . . . Total Part Build Rating . | . . . Parts Repaired 1 | . . 1 Time 32 | . . 32 Parts Recycled . | . . . Recycled Matter . | . . . Retrieved Matter . | . . . Retrieved Components . | . . . Parts Scanalyzed . | . . . Part Schematics Acquired . | . . . Parts Damaged . | . . . Bothacking | -11 -10 -9 ------------ Run | Scr Mat Mat Used RIF Installer . | . . . Robots Hacked . | . . . Non-combat . | . . . Combat . | . . . Robot Hacks Applied . | . . . Relay Couplers Released . | . . . Robots Rewired . | . . . Allies Hacked . | . . . Hacks Repelled . | . . . Allies | -11 -10 -9 -------- Run | Scr Mat Mat Total Allies . | . . . Largest Group . | . . . Highest-Rated Group . | . . . Highest-Rated Ally . | . . . Total Orders . | . . . Ally Attacks . | . . . Total Damage . | . . . Kills . | . . . Allies Corrupted . | . . . Allies Melted . | . . . Intel | -11 -10 -9 ------- Run | Scr Mat Mat Robot Analysis Total . | . . . Derelict Logs Recovered . | . . . Drone Launches . | . . . Drone Recoveries . | . . . Exploration | -11 -10 -9 ------------- Run | Scr Mat Mat Turns Passed 993 | 50 113 830 Spaces Moved 632 | 46 117 469 Core 7 | 5 . 2 Treads . | . . . Legs 446 | . . 446 Wheels 179 | 41 117 21 Hover . | . . . Flight . | . . . Fastest Speed 50 | 50 90 90 Average Speed 112 | 86 90 120 Slowest Speed 350 | 100 90 350 Overloaded Moves . | . . . Propulsion Burnouts . | . . . Robots Hopped . | . . . Cave-ins Triggered . | . . . Exploration Rate (%) 27 | 4 27 52 Regions Visited 2 Branch Regions . Pre-discovered Areas . | . . . Known Exits Taken . | . . . Unknown Exits Taken 2 | 1 1 . Scrap Searched . | . . . Spaces Dug . | . . . Terrain Destroyed 79 | . . 79 Melee . | . . . Projectile 13 | . . 13 AOE 66 | . . 66 Terrain Rammed . | . . . Walls Destroyed . | . . . Machines Disabled . | . . . Actions | -11 -10 -9 --------- Run | Scr Mat Mat Total 832 | 53 124 655 Wait 91 | . . 91 Move 630 | 45 116 469 Hop . | . . . Pick Up 14 | 2 3 9 Fast Attach 16 | 6 2 8 Attach 16 | . 1 15 Detach 9 | . 1 8 Swap 1 | . . 1 Drop 6 | . 1 5 Fire 44 | . . 44 Melee . | . . . Ram 4 | . . 4 Kick 1 | . . 1 Crush . | . . . Escape Stasis . | . . . Rewire . | . . . Trap . | . . . Miscellaneous . | . . . Route ------- -11/Scrapyard -10/Materials (discovered 2 exits: *Mat / [*Min]) -9/Materials History --------- Turn | Location | Event 13 | -11/Scrapyard | Discovered new exit (range 16) 51 | -11/Scrapyard | Entered Materials 58 | -10/Materials | Discovered new exit (range 11) 151 | -10/Materials | Discovered new exit (range 10) 164 | -10/Materials | Entered another Materials area 164 | -9/Materials | Evolved 2 slots: Propulsion x1, Utility x1 318 | -9/Materials | Build established: Mutant 378 | -9/Materials | Core integrity fell below 50% 426 | -9/Materials | Lost 4 parts (1p1n2w) 608 | -9/Materials | Repaired Imp. Terrain Scanner 926 | -9/Materials | Core integrity fell below 20% 994 | -9/Materials | Destroyed by G-34 Mercenary with Small Laser Last Messages --------------- Infected machine control systems. 00944_ Connecting with Terminal... >>Trojan(Botnet) Trojan loaded successfully. Testing... Terminal linked with 1 system. Awaiting botnet instructions. 00955_ Aluminum Leg destroyed. 00957_ Connecting with Repair Station... >>Refit Scanning configuration... Attaching: Backup Laser I x1 00973_ Aluminum Leg destroyed. 00986_ Imp. Ion Engine destroyed. 00986_ Slammed into G-34 Mercenary. 00986_ Destabilizing: Core damaged (-20). 00988_ Slammed into G-34 Mercenary. 00991_ Faulty Adv. Beam Cannon destroyed. 00993_ Slammed into G-34 Mercenary. Map ----- +----------------------------------------------------+ | ???????????????????????????"???? ??? ? ?"??# ## | | ???????????????????????????????????#? ? ?""?# | | ?????????????????????????????????????? ??? # | | ??????????????????????????????? ?##??#???##?#^ | | ?????????????????????????????????????????#?## | | ?????????????????????????????????????????#### | | ??????????????????????????????????????????### | | ????????????????????????????###????????????## | | ???????????????????????????? #???????###??# """ | | ???????????????????????????? ######### #??# """ | | ??????????????????????????? # ! #?## """ | | ???????????????????????????# # """ =#?# """ | | ???????????????????????????# # """"" ### | | ???????????????????????????# # """"" / | | ???????????????????????????# # """"" "### # | | ???????????????????????????# # """ T#?# # | | ??????????????????########## # "#?# # | | ??????????????????# """ # # #?# # | | ??????????????????# "R" # #####+####### # | | ??????????????????# " " ! # #??# | | ??????????????????# g # #### ############ | | ??????????????????# g + #??????????? | | ??????????????????#YY"""g # #??????????? | | ??????????????????# """ # #####??????? | | ??????????????????# """ # ?? | | ??????????????????# g @g# ? | | ??????????????????## ####### T [=! ] ? | | ???????????????????###?????# [=! # ?? | | ???????????????????????????# ==! #??!?? | | ???????????????????????????# #????? | | ???????????????????????????# #????? | | ???????????????????????????# ???? | | ???????????????????????????# ##########+####???? | | ???????????????????????????# #?????????????????? | | ???????????????????????????# #?????????????????? | | ???????????????????????????# #?????????????????? | | ???????????????????????????# #?????????????????? | | ??????????????????????????? ?????????????????? | | ???????????????????????????? ??????????????????? | | ???????????????????????????? ??????????????????? | | ?????????????????????????????????????????????????? | | ?????????????????????????????????????????????????? | | ?????????????????????????????????????????????????? | | ?????????????????????????????????????????????????? | | ?????????????????????????????????????????????????? | | ?????????????????????????????????????????????????? | | ?????????????????????????????????????????????????? | | ?????????????????????????????????????????????????? | | ?????????????????????????????????????????????????? | | ?????????????????????????????????????????????????? | +----------------------------------------------------+ Best States ------------- Heat Dissipation 28 Energy Generation 12 Energy Capacity 265 Matter Stores 300 Matter Capacity 400 Sight Range 16 Terrain Scan Range 16 Terrain Scan Density 110 Core Shielding 20 Evasion (%) 42 Item Schematics ----------------- None Robot Schematics ------------------ None Fabricated ------------ Nothing Alien Tech Used ----------------- None Achievements -------------- None Challenges ------------ None Game ------ Seed BoreTachyonThrusters Manual? 0 Play Time 00:25:14 Cumulative 8.1 hours Start 2021.12.13 @ 00:15:32 End 2021.12.13 @ 00:40:59 Sessions 1 Manual Loads 0 Difficulty Rogue Special Mode None Game No. 12 Rogue 12 Adventurer 0 Explorer 0 Win Type - Total 0 Types 0/0/0/0/0/0/0/0/0 Lore% 10 Gallery% 14 Achievement% 16 Wizard Run 0 Options --------- ASCII 0 Keyboard 0 Movement Vi Keybinds 0 Fullscreen 1 Font 24/Smallcaps Map View 76x50 Tactical HUD 1 Map Filters NONE Filters NONE Steam 1 RUN: 0899785c-3f04-4cdc-a865-619240ce71c0